bitfinex-derivatives/quotes_BTCF0:USTF0_20241223
["timestamp","ask_amount","ask_price","bid_price","bid_amount"]
[1734995408280,0.3608,95293.0,95288.0,0.00011435]
[1734995408577,0.052537,95289.0,95288.0,0.00011435]
[1734995410082,0.005,95293.0,95292.0,0.052535]
[1734995410288,0.09331614,95300.0,95298.0,0.052532]
[1734995410484,0.09331614,95300.0,95299.0,0.4895]
[1734995410888,0.09331614,95316.0,95299.0,0.4895]
[1734995411191,0.05253,95302.0,95299.0,0.4895]
[1734995412792,0.003,95300.0,95299.0,0.4895]
[1734995413090,0.002,95316.0,95299.0,0.4895]
[1734995413286,0.09331614,95326.0,95315.0,0.3608]
[1734995413484,0.09331614,95326.0,95319.0,0.05252]
[1734995413891,0.09331614,95326.0,95325.0,0.3608]
[1734995414189,0.12393189,95332.0,95328.0,0.052515]
[1734995414498,0.413309,95341.0,95328.0,0.052515]
[1734995414700,0.413309,95341.0,95330.0,0.10558084]
[1734995415196,0.052511,95336.0,95330.0,0.10558084]
[1734995415391,0.3608,95341.0,95325.0,0.37597014]
[1734995415592,0.3608,95341.0,95320.0,0.10558084]
[1734995416095,0.3608,95341.0,95327.0,0.24863116]
[1734995416603,0.052515,95329.0,95327.0,0.24863116]
[1734995416894,0.052515,95329.0,95299.0,0.3608]
[1734995416895,0.05253,95301.0,95297.0,0.43364061]
[1734995417397,0.05253,95301.0,95279.0,0.0152227]
[1734995417398,0.052537,95289.0,95279.0,0.0152227]
[1734995417587,0.413337,95289.0,95272.0,0.40915368]
[1734995417789,0.413337,95289.0,95273.0,0.01484422]
[1734995417993,0.413337,95289.0,95272.0,0.40915368]
[1734995418390,0.052546,95274.0,95272.0,0.40915368]
[1734995418596,0.3608,95273.0,95272.0,0.27575368]
[1734995418994,0.052547,95271.0,95252.0,0.052557]
[1734995419197,0.052552,95262.0,95253.0,0.052557]
[1734995419600,0.052552,95262.0,95255.0,0.052556]
[1734995420897,0.052552,95262.0,95255.0,0.054556]
[1734995421194,0.052552,95262.0,95255.0,0.002]
[1734995421802,0.052552,95262.0,95255.0,0.007]
[1734995422202,0.052544,95278.0,95260.0,0.052553]
[1734995422388,0.05254,95285.0,95271.0,0.052547]
[1734995422590,0.3608,95294.0,95265.0,0.3608]
[1734995422591,0.052543,95279.0,95274.0,0.3608]
[1734995422793,0.3608,95285.0,95265.0,0.3608]
[1734995423302,0.052544,95278.0,95265.0,0.3608]
[1734995423504,0.3608,95285.0,95265.0,0.3608]
[1734995423505,0.052545,95275.0,95265.0,0.3608]
[1734995424596,0.052541,95282.0,95265.0,0.3608]
[1734995424907,0.3638,95285.0,95274.0,0.3608]
[1734995424908,0.00356001,95285.0,95274.0,0.3608]
[1734995425109,0.3608,95303.0,95284.0,0.3608]
[1734995425110,0.3608,95294.0,95284.0,0.3608]
[1734995426208,0.3618,95294.0,95284.0,0.3608]
[1734995426709,0.001,95294.0,95284.0,0.3608]
[1734995427002,0.001,95294.0,95275.0,0.2676]
[1734995427209,0.05254,95284.0,95275.0,0.2676]
[1734995427509,0.05254,95284.0,95275.0,0.28164568]
[1734995428407,0.05254,95284.0,95276.0,0.1205]
[1734995429400,0.05254,95284.0,95276.0,0.1235]
[1734995429600,0.3608,95295.0,95276.0,0.1235]
[1734995429806,0.3608,95295.0,95283.0,0.05254]
[1734995430196,0.3608,95295.0,95276.0,0.1245]
[1734995430398,0.052531,95301.0,95284.0,0.3608]
[1734995430902,0.052531,95301.0,95284.0,0.41334]
[1734995431108,0.3608,95303.0,95284.0,0.41334]
[1734995431405,0.001,95295.0,95284.0,0.41334]
[1734995432001,0.3618,95295.0,95284.0,0.3608]
[1734995432203,0.052538,95287.0,95284.0,0.3608]
[1734995432703,0.052539,95286.0,95284.0,0.3608]
[1734995432911,0.05254,95283.0,95276.0,0.1205]
[1734995434519,0.05254,95283.0,95276.0,0.1215]
[1734995434709,0.36240001,95287.0,95276.0,0.1215]
[1734995434905,0.3608,95295.0,95285.0,0.052539]
[1734995435212,0.3608,95307.0,95299.0,0.052531]
[1734995435407,0.3608,95307.0,95290.0,0.3608]
[1734995435408,0.3608,95307.0,95300.0,0.242]
[1734995435811,0.052529,95303.0,95300.0,0.242]
[1734995436003,0.05253,95302.0,95300.0,0.242]
[1734995436207,0.05253,95302.0,95300.0,0.1218]
[1734995436604,0.05253,95302.0,95300.0,0.1228]
[1734995436810,0.05253,95302.0,95300.0,0.001]
[1734995437212,0.05853,95302.0,95300.0,0.001]
[1734995437612,0.06253,95302.0,95300.0,0.001]
[1734995438407,0.01,95302.0,95300.0,0.001]
[1734995439517,0.06253,95302.0,95300.0,0.001]
[1734995441006,0.10586855,95301.0,95300.0,0.001]
[1734995441606,0.46666855,95301.0,95300.0,0.001]
[1734995442215,0.052535,95292.0,95291.0,0.0486]
[1734995442416,0.413335,95292.0,95291.0,0.0486]
[1734995443116,0.3608,95292.0,95274.0,0.052545]
[1734995443319,0.05254,95285.0,95275.0,0.052544]
[1734995444114,0.3608,95281.0,95275.0,0.052544]
[1734995444318,0.3608,95281.0,95271.0,0.13528845]
[1734995444821,0.052537,95290.0,95278.0,0.052543]
[1734995445521,0.052537,95290.0,95279.0,0.1232]
[1734995445911,0.36136001,95292.0,95280.0,0.10586855]
[1734995446114,0.3608,95292.0,95280.0,0.10586855]
[1734995446523,0.3608,95292.0,95279.0,0.1232]
[1734995446721,0.052537,95290.0,95279.0,0.1232]
[1734995447318,0.052538,95288.0,95279.0,0.1232]
[1734995447529,0.3608,95292.0,95279.0,0.1232]
[1734995447717,0.3608,95284.0,95279.0,0.1232]
[1734995447911,0.052543,95279.0,95278.0,0.001]
[1734995448113,0.3608,95284.0,95271.0,0.01378845]
[1734995448328,0.3608,95274.0,95269.0,0.30992884]
[1734995448529,0.052547,95271.0,95269.0,0.30992884]
[1734995449323,0.052549,95267.0,95265.0,0.1252]
[1734995449515,0.3608,95274.0,95265.0,0.1252]
[1734995449731,0.3608,95293.0,95282.0,0.052541]
[1734995450216,0.3608,95293.0,95276.0,0.3608]
[1734995450626,0.052541,95282.0,95276.0,0.3608]
[1734995450822,0.052541,95282.0,95276.0,0.37416889]
[1734995451217,0.3608,95293.0,95276.0,0.3608]
[1734995451429,0.17646089,95303.0,95293.0,0.052534]
[1734995451620,0.17646089,95303.0,95294.0,0.1246]
[1734995451828,0.12393189,95301.0,95294.0,0.1246]
[1734995452022,0.12393189,95301.0,95297.0,0.052533]
[1734995452221,0.12393189,95301.0,95294.0,0.1246]
[1734995452222,0.12393189,95301.0,95294.0,0.0516]
[1734995453437,0.003,95301.0,95294.0,0.0516]
[1734995454422,0.008,95301.0,95294.0,0.0516]
[1734995454629,0.008,95301.0,95300.0,0.052531]
[1734995454826,0.00056001,95303.0,95302.0,0.05253]
[1734995455021,0.12393189,95314.0,95302.0,0.05253]
[1734995455223,0.12393189,95314.0,95313.0,0.413324]
[1734995455530,0.12393189,95314.0,95295.0,0.1279]
[1734995455728,0.3608,95309.0,95295.0,0.1279]
[1734995455931,0.004,95301.0,95295.0,0.1279]
[1734995456133,0.004,95301.0,95297.0,0.052533]
[1734995456331,0.004,95301.0,95298.0,0.052532]
[1734995456733,0.006,95303.0,95300.0,0.052531]
[1734995457131,0.006,95303.0,95302.0,0.05253]
[1734995457435,0.003,95314.0,95298.0,0.34033]
[1734995457638,0.005,95314.0,95313.0,0.052524]
[1734995458126,0.003,95314.0,95313.0,0.052524]
[1734995458322,0.12393189,95321.0,95307.0,0.3608]
[1734995458529,0.12393189,95321.0,95319.0,0.41332]
[1734995458740,0.12393189,95321.0,95320.0,0.2652]
[1734995458927,0.13462671,95328.0,95327.0,0.052516]
[1734995459236,0.48700218,95343.0,95327.0,0.3608]
[1734995459437,0.12564217,95343.0,95341.0,0.052508]
[1734995459635,0.15705271,95350.0,95337.0,0.3608]
[1734995459930,0.15705271,95350.0,95349.0,0.3608]
[1734995460348,0.15705271,95350.0,95340.0,0.51256085]
[1734995460530,0.15705271,95350.0,95340.0,0.35396]
[1734995460731,0.15705271,95350.0,95340.0,0.51256085]
[1734995461133,0.052501,95355.0,95344.0,0.31070974]
[1734995461726,0.002,95350.0,95344.0,0.31070974]
[1734995462127,0.002,95350.0,95340.0,0.51140085]
[1734995462438,0.002,95350.0,95340.0,0.43840085]
[1734995462841,0.052503,95351.0,95340.0,0.43840085]
[1734995463240,0.3608,95349.0,95340.0,0.43840085]
[1734995464332,0.3608,95349.0,95327.0,0.31070974]
[1734995464333,0.3608,95341.0,95328.0,0.3608]
[1734995464529,0.3608,95333.0,95327.0,0.31070974]
[1734995464729,0.2436,95348.0,95327.0,0.31070974]
[1734995464730,0.2436,95348.0,95331.0,0.3608]
[1734995464940,0.3608,95354.0,95339.0,0.052509]
[1734995465340,0.001,95350.0,95332.0,0.1296]
[1734995465535,0.001,95350.0,95341.0,0.052508]
[1734995465730,0.001,95350.0,95332.0,0.2604]
[1734995465932,0.36136001,95354.0,95340.0,0.15860085]
[1734995466238,0.001,95354.0,95353.0,0.3608]
[1734995466745,0.3608,95367.0,95353.0,0.3608]
[1734995466944,0.3608,95367.0,95356.0,0.0525]
[1734995467237,0.3608,95367.0,95353.0,0.3403]
[1734995467443,0.3608,95355.0,95349.0,0.052504]
[1734995467640,0.3608,95355.0,95341.0,0.3608]
[1734995468045,0.3608,95355.0,95341.0,0.413308]
[1734995468542,0.3608,95355.0,95345.0,0.052506]
[1734995468735,0.052496,95363.0,95345.0,0.052506]
[1734995469042,0.003,95354.0,95341.0,0.3608]
[1734995469343,0.003,95354.0,95352.0,0.052502]
[1734995469548,0.3608,95377.0,95366.0,0.052495]
[1734995469841,0.00060001,95388.0,95373.0,0.3608]
[1734995470046,0.052478,95396.0,95380.0,0.052487]
[1734995470542,0.36136001,95398.0,95380.0,0.052487]
[1734995470745,0.052479,95394.0,95380.0,0.052487]
[1734995470936,0.36144,95398.0,95373.0,0.3608]
[1734995471134,0.3608,95398.0,95382.0,0.052486]
[1734995471334,0.3608,95398.0,95388.0,0.052482]
[1734995471543,0.3608,95398.0,95381.0,0.052486]
[1734995471847,0.1,95400.0,95399.0,0.052476]
[1734995472144,0.00056001,95411.0,95399.0,0.2878]
[1734995472331,0.3608,95404.0,95397.0,0.052477]
[1734995472537,0.3608,95404.0,95389.0,0.180482]
[1734995472738,0.3608,95396.0,95389.0,0.128]
[1734995473037,0.3608,95396.0,95381.0,0.1221]
[1734995473233,0.3608,95396.0,95386.0,0.052483]
[1734995473441,0.3608,95396.0,95381.0,0.1354997]
[1734995473950,0.41387401,95404.0,95390.0,0.052481]
[1734995474143,0.41387401,95404.0,95390.0,0.15860085]
[1734995474144,0.3608,95404.0,95390.0,0.15860085]
[1734995474335,0.1259,95411.0,95390.0,0.15860085]
[1734995474535,0.3608,95415.0,95400.0,0.15860085]
[1734995474841,0.00056001,95415.0,95414.0,0.052468]
[1734995475040,0.3608,95427.0,95416.0,0.052467]
[1734995476740,0.413262,95427.0,95409.0,0.173071]
[1734995477142,0.052462,95426.0,95409.0,0.173071]
[1734995477339,0.052462,95426.0,95409.0,0.100071]
[1734995477742,0.3608,95427.0,95408.0,0.3608]
[1734995478045,0.3608,95427.0,95410.0,0.15860085]
[1734995478246,0.3608,95418.0,95416.0,0.001]
[1734995478841,0.413266,95418.0,95416.0,0.001]
[1734995479043,0.413266,95418.0,95402.0,0.052475]
[1734995479343,0.413266,95418.0,95400.0,0.15860085]
[1734995479344,0.3608,95418.0,95405.0,0.052473]
[1734995479545,0.3608,95418.0,95400.0,0.15860085]
[1734995479546,0.3608,95427.0,95408.0,0.15860085]
[1734995479740,0.3608,95427.0,95412.0,0.3608]
[1734995479941,0.3608,95427.0,95424.0,0.052462]
[1734995480147,0.3608,95427.0,95425.0,0.052462]
[1734995481549,0.3608,95427.0,95418.0,0.1326]
[1734995481753,0.3608,95427.0,95412.0,0.3608]
[1734995481754,0.052462,95425.0,95412.0,0.3608]
[1734995482154,0.3608,95419.0,95412.0,0.3608]
[1734995482354,0.3608,95419.0,95410.0,0.05247]
[1734995483053,0.3608,95419.0,95410.0,0.06551334]
[1734995483351,0.3608,95419.0,95410.0,0.01304334]
[1734995483543,0.3608,95419.0,95416.0,0.052467]
[1734995483748,0.3608,95419.0,95417.0,0.052466]
[1734995484056,0.36136001,95427.0,95417.0,0.052466]
[1734995484255,0.3608,95427.0,95417.0,0.052466]
[1734995484556,0.052459,95431.0,95417.0,0.052466]
[1734995484557,0.3608,95426.0,95417.0,0.052466]
[1734995484751,0.3608,95426.0,95421.0,0.052464]
[1734995485151,0.3608,95426.0,95422.0,0.052464]
[1734995485353,0.3608,95426.0,95416.0,0.052467]
[1734995486058,0.3608,95417.0,95409.0,0.01308044]
[1734995486251,0.3608,95417.0,95411.0,0.05247]
[1734995492257,0.3608,95417.0,95412.0,0.052469]
[1734995493064,0.3608,95417.0,95415.0,0.052468]
[1734995493458,0.3608,95417.0,95407.0,0.10558407]
[1734995493856,0.3608,95417.0,95408.0,0.052472]
[1734995494162,0.3608,95417.0,95407.0,0.10558407]
[1734995494163,0.3608,95417.0,95414.0,0.052468]
[1734995494465,0.36136001,95426.0,95408.0,0.3608]
[1734995494660,0.3608,95426.0,95424.0,0.052463]
[1734995495664,0.3608,95426.0,95418.0,0.1215]
[1734995495967,0.3608,95426.0,95418.0,0.173966]
[1734995496960,0.3608,95426.0,95418.0,0.1215]
[1734995497162,0.3608,95426.0,95418.0,0.0485]
[1734995497465,0.3608,95426.0,95416.0,0.10558407]
[1734995499367,0.3608,95426.0,95416.0,0.11823953]
[1734995499964,0.052466,95419.0,95418.0,0.24520342]
[1734995500165,0.3608,95419.0,95418.0,0.24520342]
[1734995500672,0.413266,95419.0,95418.0,0.24520342]
[1734995500861,0.3608,95419.0,95418.0,0.24520342]
[1734995501271,0.413266,95419.0,95418.0,0.24520342]
[1734995502269,0.413266,95419.0,95418.0,0.17220342]
[1734995502570,0.05247,95412.0,95411.0,0.31070974]
[1734995502769,0.052471,95409.0,95408.0,0.31070974]
[1734995503870,0.052471,95409.0,95408.0,0.31170974]
[1734995504256,0.052471,95409.0,95408.0,0.001]
[1734995504864,0.36144,95412.0,95399.0,0.10558407]
[1734995505166,0.3608,95400.0,95399.0,0.052477]
[1734995505566,0.3608,95400.0,95395.0,0.31070974]
[1734995505771,0.3608,95400.0,95396.0,0.04447658]
[1734995506074,0.3608,95400.0,95397.0,0.04447658]
[1734995506271,0.3608,95400.0,95394.0,0.36318874]
[1734995506272,0.3608,95400.0,95394.0,0.31070974]
[1734995506472,0.052478,95396.0,95395.0,0.04449831]
[1734995506776,0.052478,95396.0,95394.0,0.31070974]
[1734995506973,0.052478,95396.0,95390.0,0.32333765]
[1734995507164,0.413918,95397.0,95396.0,0.006]
[1734995507370,0.413278,95397.0,95396.0,0.006]
[1734995507875,0.052478,95396.0,95395.0,0.008]
[1734995508370,0.36136001,95397.0,95395.0,0.008]
[1734995508572,0.3608,95422.0,95396.0,0.40527194]
[1734995508774,0.3608,95422.0,95420.0,0.052465]
[1734995509072,0.36136001,95434.0,95410.0,0.10558407]
[1734995509073,0.1877067,95424.0,95410.0,0.10558407]
[1734995509379,0.1877067,95424.0,95420.0,0.052465]
[1734995509580,0.1877067,95424.0,95421.0,0.17304199]
[1734995509868,0.1877067,95424.0,95422.0,0.04444199]
[1734995510080,0.1877067,95424.0,95421.0,0.1286]
[1734995510467,0.052459,95431.0,95421.0,0.1286]
[1734995511572,0.052459,95431.0,95419.0,0.31070974]
[1734995511573,0.052464,95423.0,95419.0,0.31070974]
[1734995512275,0.052465,95420.0,95419.0,0.23770974]
[1734995513071,0.36144,95423.0,95419.0,0.23770974]
[1734995513272,0.413264,95423.0,95406.0,0.0120598]
[1734995513475,0.413264,95423.0,95400.0,0.15837513]
[1734995513476,0.3608,95415.0,95400.0,0.15837513]
[1734995513773,0.3608,95415.0,95398.0,0.052477]
[1734995513976,0.3608,95415.0,95400.0,0.15837513]
[1734995514372,0.3608,95415.0,95406.0,0.002]
[1734995514982,0.3608,95415.0,95406.0,0.054473]
[1734995515473,0.3608,95415.0,95407.0,0.052472]
[1734995515779,0.3608,95415.0,95409.0,0.052471]
[1734995515972,0.3608,95415.0,95406.0,0.002]
[1734995516174,0.3608,95415.0,95411.0,0.052469]
[1734995517079,0.3608,95415.0,95400.0,0.52117513]
[1734995517269,0.3608,95415.0,95413.0,0.052469]
[1734995518481,0.3608,95423.0,95422.0,0.052464]
[1734995518969,0.3608,95423.0,95413.0,0.01211245]
[1734995519169,0.3608,95423.0,95416.0,0.052467]
[1734995519771,0.1336,95422.0,95416.0,0.052467]
[1734995520883,0.1336,95422.0,95410.0,0.05247]
[1734995521079,0.3608,95411.0,95410.0,0.05247]
[1734995522286,0.3608,95411.0,95405.0,0.01209765]
[1734995522474,0.413273,95406.0,95398.0,0.37417169]
[1734995522669,0.413273,95406.0,95391.0,0.37285169]
[1734995522670,0.3608,95401.0,95391.0,0.37285169]
[1734995522873,0.3608,95392.0,95391.0,0.37285169]
[1734995523883,0.3608,95392.0,95374.0,0.37285169]
[1734995524183,0.7216,95375.0,95374.0,0.37285169]
[1734995524687,0.7216,95375.0,95374.0,0.17165169]
[1734995525072,0.05249,95374.0,95362.0,0.052497]
[1734995525282,0.3608,95363.0,95362.0,0.052497]
[1734995526781,0.3608,95363.0,95362.0,0.060497]
[1734995527485,0.36136001,95375.0,95371.0,0.052491]
[1734995527784,0.3608,95375.0,95373.0,0.052491]
[1734995528184,0.3608,95375.0,95368.0,0.052493]
[1734995529177,0.3608,95375.0,95362.0,0.011]
[1734995529485,0.3608,95375.0,95373.0,0.052491]
[1734995529677,0.05249,95374.0,95371.0,0.005]
[1734995529881,0.413291,95372.0,95371.0,0.002]
[1734995530083,0.413291,95372.0,95360.0,0.00010559]
[1734995530084,0.6608,95372.0,95360.0,0.00010559]
[1734995530284,0.3608,95361.0,95360.0,0.00010559]
[1734995531286,0.3608,95361.0,95360.0,0.00410559]
[1734995531992,0.052502,95353.0,95340.0,0.18577927]
[1734995532195,0.3608,95348.0,95340.0,0.16528727]
[1734995532687,0.3608,95341.0,95340.0,0.16528727]
[1734995532892,0.3608,95341.0,95340.0,0.052509]
[1734995533481,0.3608,95341.0,95340.0,0.059509]
[1734995533794,0.3608,95341.0,95340.0,0.060509]
[1734995534086,0.3608,95341.0,95340.0,0.055509]
[1734995534293,0.00060001,95348.0,95340.0,0.055509]
[1734995534492,0.3608,95356.0,95340.0,0.055509]
[1734995534791,0.3608,95356.0,95341.0,0.052508]
[1734995534792,0.3608,95347.0,95341.0,0.052508]
[1734995534986,0.3608,95347.0,95345.0,0.052506]
[1734995535180,0.3608,95348.0,95345.0,0.052506]
[1734995536407,0.3608,95348.0,95340.0,0.004]
[1734995536594,0.3608,95348.0,95345.0,0.053506]
[1734995536991,0.3608,95348.0,95346.0,0.052505]
[1734995537191,0.00056001,95356.0,95355.0,0.052501]
[1734995537396,0.3608,95358.0,95349.0,0.052504]
[1734995537703,0.3608,95350.0,95346.0,0.1299]
[1734995538499,0.3608,95350.0,95340.0,0.004]
[1734995538699,0.052507,95344.0,95340.0,0.004]
[1734995539200,0.052507,95344.0,95332.0,0.052513]
[1734995539201,0.3608,95342.0,95332.0,0.052513]
[1734995539401,0.3608,95342.0,95326.0,0.1319]
[1734995539402,0.3608,95342.0,95326.0,0.14416828]
[1734995539909,0.3608,95342.0,95340.0,0.002]
[1734995540208,0.00064,95350.0,95345.0,0.052506]
[1734995540511,0.3608,95356.0,95345.0,0.052506]
[1734995541093,0.3608,95356.0,95332.0,0.005]
[1734995541094,0.3608,95356.0,95339.0,0.052509]
[1734995541299,0.3608,95356.0,95340.0,0.052509]
[1734995541503,0.3608,95347.0,95332.0,0.005]
[1734995541702,0.3608,95347.0,95337.0,0.05251]
[1734995541908,0.3608,95347.0,95340.0,0.001]
[1734995542300,0.3608,95347.0,95345.0,0.052506]
[1734995542601,0.36244,95356.0,95351.0,0.052503]
[1734995542800,0.3618,95356.0,95352.0,0.1286]
[1734995543005,0.3608,95356.0,95352.0,0.1286]
[1734995544307,0.3608,95379.0,95355.0,0.3608]
[1734995544507,0.4895,95411.0,95391.0,0.052481]
[1734995544706,0.3608,95411.0,95386.0,0.3608]
[1734995545007,0.3608,95411.0,95397.0,0.413278]
[1734995545203,0.3608,95411.0,95386.0,0.3608]
[1734995545403,0.12548693,95414.0,95408.0,0.3608]
[1734995545599,0.15685361,95425.0,95424.0,0.052463]
[1734995546496,0.15685361,95425.0,95424.0,0.413263]
[1734995546697,0.3608,95452.0,95424.0,0.413263]
[1734995546905,0.3608,95452.0,95440.0,0.15837513]
[1734995547214,0.3608,95461.0,95443.0,0.2878]
[1734995547509,0.3608,95461.0,95453.0,0.052447]
[1734995548502,0.3608,95461.0,95459.0,0.052443]
[1734995548899,0.3608,95472.0,95450.0,0.15837513]
[1734995548900,0.3608,95460.0,95450.0,0.15837513]
[1734995549611,0.006,95461.0,95450.0,0.15837513]
[1734995549804,0.3668,95461.0,95450.0,0.15837513]
[1734995550009,0.3688,95461.0,95453.0,0.001]
[1734995550307,0.003,95460.0,95453.0,0.001]
[1734995550517,0.003,95460.0,95450.0,0.15837513]
[1734995550707,0.008,95460.0,95450.0,0.15837513]
[1734995551213,0.003,95460.0,95450.0,0.15837513]
[1734995551408,0.3608,95455.0,95453.0,0.001]
[1734995551612,1.5,95454.0,95453.0,0.001]
[1734995552606,1.5,95454.0,95371.0,0.02816793]
[1734995552607,0.052451,95446.0,95429.0,0.01191704]
[1734995552911,0.3608,95439.0,95420.0,0.15837513]
[1734995553100,0.3608,95439.0,95420.0,0.51917513]
[1734995553512,1.509,95454.0,95453.0,0.001]
[1734995554117,0.001,95439.0,95429.0,0.3608]
[1734995554506,0.3608,95436.0,95429.0,0.3608]
[1734995554904,0.052459,95431.0,95420.0,0.011]
[1734995555113,0.3608,95423.0,95420.0,0.011]
[1734995555411,0.052464,95421.0,95420.0,0.008]
[1734995555714,0.052464,95421.0,95405.0,0.35256]
[1734995555715,0.052469,95412.0,95405.0,0.35256]
[1734995555904,0.3608,95408.0,95405.0,0.35256]
[1734995556212,0.052473,95406.0,95405.0,0.35256]
[1734995556419,0.052474,95403.0,95399.0,0.30658688]
[1734995557207,0.052474,95403.0,95386.0,0.06417105]
[1734995557419,0.3608,95396.0,95386.0,0.06417105]
[1734995557907,0.3608,95396.0,95386.0,0.01168805]
[1734995558113,0.3608,95396.0,95380.0,0.52069513]
[1734995558307,0.3608,95396.0,95388.0,0.413282]
[1734995558710,0.001,95406.0,95388.0,0.3608]
[1734995558916,0.001,95403.0,95399.0,0.009]
[1734995560122,0.052468,95414.0,95398.0,0.052477]
[1734995560710,0.001,95403.0,95399.0,0.009]
[1734995561518,0.001,95403.0,95399.0,0.014]
[1734995561817,0.052476,95401.0,95399.0,0.014]
[1734995562224,0.052482,95389.0,95372.0,0.052491]
[1734995562422,0.052482,95389.0,95375.0,0.052489]
[1734995563424,0.053482,95389.0,95375.0,0.052489]
[1734995563822,0.052482,95389.0,95375.0,0.052489]
[1734995564124,0.053482,95389.0,95375.0,0.061489]
[1734995564325,0.001,95389.0,95384.0,0.3608]
[1734995565526,0.001,95389.0,95384.0,0.3668]
[1734995565722,0.001,95389.0,95384.0,0.3688]
[1734995566223,0.001,95389.0,95387.0,0.052483]
[1734995566427,0.3608,95413.0,95388.0,0.3608]
[1734995566630,0.3608,95413.0,95402.0,0.3608]
[1734995567525,0.052473,95406.0,95402.0,0.3608]
[1734995568625,0.052469,95412.0,95402.0,0.3608]
[1734995569140,0.001,95406.0,95402.0,0.3608]
[1734995569628,0.003,95406.0,95402.0,0.3608]
[1734995570330,0.052474,95403.0,95402.0,0.007]
[1734995570827,0.052474,95403.0,95402.0,0.005]
[1734995571228,0.052474,95403.0,95402.0,0.008]
[1734995571918,0.052474,95403.0,95402.0,0.005]
[1734995572315,0.052475,95402.0,95390.0,0.01187955]
[1734995572614,0.052475,95402.0,95389.0,0.052482]
[1734995573527,0.053475,95402.0,95390.0,0.007]
[1734995573827,0.053475,95402.0,95390.0,0.01]
[1734995574027,0.053475,95402.0,95390.0,0.003]
[1734995574228,0.053475,95402.0,95389.0,0.060482]
[1734995574425,0.053475,95402.0,95389.0,0.063482]
[1734995575230,0.053475,95402.0,95390.0,0.002]
[1734995575525,0.053475,95402.0,95390.0,0.008]
[1734995575725,0.052476,95401.0,95390.0,0.008]
[1734995575926,0.052479,95395.0,95390.0,0.008]
[1734995576127,0.15837513,95400.0,95390.0,0.002]
[1734995576427,0.41328,95392.0,95390.0,0.002]
[1734995576821,0.41328,95392.0,95390.0,0.008]
[1734995577132,0.41328,95392.0,95390.0,0.006]
[1734995577327,0.3608,95392.0,95390.0,0.006]
[1734995578029,0.3608,95392.0,95390.0,0.007]
[1734995578328,0.3608,95392.0,95390.0,0.006]
[1734995578727,0.3608,95392.0,95390.0,0.001]
[1734995578925,0.052481,95391.0,95390.0,0.005]
[1734995579318,0.052489,95377.0,95376.0,0.24591566]
[1734995580323,0.052494,95368.0,95367.0,0.24591566]
[1734995580730,0.413294,95368.0,95367.0,0.24591566]
[1734995581830,0.713294,95368.0,95360.0,0.30658688]
[1734995582025,0.713294,95368.0,95324.0,0.1235]
[1734995582026,0.052501,95354.0,95353.0,0.30658688]
[1734995582232,0.413301,95354.0,95353.0,0.30658688]
[1734995582733,0.052505,95348.0,95347.0,0.36790426]
[1734995582932,0.052512,95335.0,95334.0,0.43082163]
[1734995583135,0.052512,95335.0,95334.0,0.42922163]
[1734995583839,0.3608,95337.0,95327.0,0.00152]
[1734995583840,0.052514,95332.0,95327.0,0.00152]
[1734995584031,0.052514,95332.0,95324.0,0.36232]
[1734995584228,0.052517,95325.0,95324.0,0.3608]
[1734995584429,0.15837513,95334.0,95324.0,0.3608]
[1734995584630,0.052513,95333.0,95324.0,0.3608]
[1734995585024,0.3608,95350.0,95324.0,0.3608]
[1734995585223,0.052508,95342.0,95325.0,0.052517]
[1734995585429,0.052508,95342.0,95324.0,0.3608]
[1734995585430,0.052505,95347.0,95332.0,0.3608]
[1734995585733,0.001,95335.0,95334.0,0.007]
[1734995585936,0.3608,95358.0,95334.0,0.007]
[1734995586133,0.001,95350.0,95344.0,0.3608]
[1734995586324,0.052495,95365.0,95346.0,0.052505]
[1734995586530,0.052492,95371.0,95360.0,0.3608]
[1734995586837,0.3608,95374.0,95360.0,0.3608]
[1734995587637,0.052494,95368.0,95360.0,0.3608]
[1734995588334,0.3608,95374.0,95344.0,0.002]
[1734995588335,0.052496,95364.0,95344.0,0.002]
[1734995588534,0.3608,95356.0,95344.0,0.002]
[1734995588924,0.413306,95346.0,95344.0,0.002]
[1734995589440,0.052511,95336.0,95335.0,0.3608]
[1734995591332,0.052507,95344.0,95335.0,0.3608]
[1734995591730,0.052507,95344.0,95335.0,0.3648]
[1734995591932,0.3608,95356.0,95335.0,0.3648]
[1734995592126,0.3608,95356.0,95335.0,0.3608]
[1734995592431,0.3608,95356.0,95335.0,0.3648]
[1734995592631,0.3608,95356.0,95335.0,0.3658]
[1734995592934,0.052509,95341.0,95335.0,0.3658]
[1734995593141,0.052511,95336.0,95335.0,0.3658]
[1734995593334,0.052511,95336.0,95335.0,0.3648]
[1734995593537,0.052511,95336.0,95335.0,0.3658]
[1734995593738,0.052511,95336.0,95335.0,0.005]
[1734995594239,0.413311,95336.0,95335.0,0.005]
[1734995594434,0.413311,95336.0,95335.0,0.001]
[1734995594642,0.413311,95336.0,95335.0,0.004]
[1734995594942,0.052511,95336.0,95335.0,0.004]
[1734995595143,0.3608,95344.0,95335.0,0.003]
[1734995595638,0.052511,95337.0,95335.0,0.003]
[1734995595833,0.001,95336.0,95335.0,0.3618]
[1734995596236,0.001,95336.0,95335.0,0.3608]
[1734995596534,0.052516,95329.0,95327.0,0.3608]
[1734995596934,0.001,95336.0,95327.0,0.3608]
[1734995597243,0.001,95336.0,95320.0,0.01184656]
[1734995597244,0.052513,95334.0,95323.0,0.3608]